[Event "Kragero Resort B 2020"]
[Site "Kragero"]
[Date "2020.02.21"]
[Round "5.2"]
[White "Bernstein, Jonas August"]
[Black "Aasen, Kjetil Myrlid"]
[Result "1/2-1/2"]
[ECO "A61"]
[WhiteElo "1798"]
[BlackElo "1892"]
[Annotator "NA"]
[PlyCount "143"]
[EventDate "2020.02.19"]
[EventType "swiss"]
[EventCountry "NOR"]
[SourceTitle "playchess.com"]
[Source "ChessBase"]
[SourceQuality "1"]
[TimeControl "5400+30"]

1. d4 {[%emt 0:08:23]} Nf6 {[%emt 0:00:00]} 2. c4 {[%emt 0:00:08]} c5 {[%emt 0:00:00]} 3. d5 {[%emt 0:00:05]} e6 {[%emt 0:00:00]} 4. Nc3 {[%emt 0:00:13]} exd5 {[%emt 0:00:00]} 5. cxd5 {[%emt 0:00:02]} d6 {[%emt 0:00:00]} 6. Nf3 {[%emt 0:00:25]} g6 {[%emt 0:00:34]} 7. Bf4 {[%emt 0:00:35]} a6 {[%emt 0:03:13]} 8. h3 {[%emt 0:00:32]} b5 {[%emt 0:02:21]} 9. e3 {[%emt 0:02:04]} Bb7 {[%emt 0:04:56]} 10. Bg5 {[%emt 0:07:04]} Bg7 {[%emt 0:02:16]} 11. Be2 {[%emt 0:05:01]} Qa5 {[%emt 0:11:17]} 12. O-O {[%emt 0:02:47]} b4 {[%emt 0:02:44]} 13. Bxf6 {[%emt 0:02:30]} Bxf6 {[%emt 0:00:16]} 14. Qa4+ {[%emt 0:00:17]} Qxa4 {[%emt 0:00:55]} 15. Nxa4 {[%emt 0:00:03]} Nd7 $15 {[%emt 0:04:30]} 16. Rad1 {[%emt 0:01:53]} O-O {[%emt 0:04:48]} 17. Rfe1 {[%emt 0:04:33]} Rab8 {[%emt 0:09:00]} 18. Bc4 {[%emt 0:03:04]} Bc8 {[%emt 0:11:03]} 19. Re2 {[%emt 0:17:42]} Ne5 {[%emt 0:02:28]} 20. Nxe5 {[%emt 0:01:35]} Bxe5 {[%emt 0:00:01]} 21. b3 {[%emt 0:03:10]} Re8 {[%emt 0:05:55]} 22. Nb2 {[%emt 0:03:47]} Bc3 {[%emt 0:00:15]} 23. Na4 {[%emt 0:01:23]} Bg7 {[%emt 0:00:14]} 24. Nb2 {[%emt 0:00:35]} Bd7 {[%emt 0:04:50]} 25. Na4 {[%emt 0:06:49]} Bb5 {[%emt 0:03:37]} 26. Nb2 {[%emt 0:02:16]} Re4 {[%emt 0:02:19]} 27. Rc2 {[%emt 0:06:33]} Bc3 {[%emt 0:09:36]} 28. Bf1 {[%emt 0:03:38]} Re7 {[%emt 0:07:00]} 29. Nc4 {[%emt 0:01:30]} Bxc4 {[%emt 0:00:03]} 30. Bxc4 {[%emt 0:00:22]} a5 {[%emt 0:00:59]} 31. a4 {[%emt 0:01:10]} f5 {[%emt 0:01:21]} 32. Bb5 {[%emt 0:02:24]} Rf8 {[%emt 0:00:29]} 33. Bc6 {[%emt 0:01:13]} f4 {[%emt 0:01:35]} 34. exf4 {[%emt 0:01:10]} Rxf4 {[%emt 0:00:14]} 35. Rf1 {[%emt 0:02:25]} Rfe4 {[%emt 0:01:54]} 36. Bb5 {[%emt 0:01:35]} g5 {[%emt 0:02:02]} 37. g3 {[%emt 0:02:01]} Kg7 {[%emt 0:01:32]} 38. Kg2 {[%emt 0:01:52]} h6 {[%emt 0:02:13]} 39. Ra2 {[%emt 0:00:49]} Kf6 {[%emt 0:01:03]} 40. Rc2 {[%emt 0:00:54]} h5 {[%emt 0:01:37]} 41. Ra2 {[%emt 0:00:35]} h4 {[%emt 0:00:16]} 42. g4 {[%emt 0:00:48]} Ke5 {[%emt 0:00:45]} 43. Bc4 {[%emt 0:00:30]} Kf4 {[%emt 0:00:32]} 44. Rc2 {[%emt 0:01:03]} Bd4 {[%emt 0:00:41]} 45. Bd3 {[%emt 0:01:49]} R4e5 {[%emt 0:00:23]} 46. Bc4 {[%emt 0:00:09]} Re1 {[%emt 0:00:35]} 47. Rxe1 {[%emt 0:01:17]} Rxe1 {[%emt 0:00:01]} 48. Re2 {[%emt 0:00:03]} Rxe2 {[%emt 0:00:42]} 49. Bxe2 {[%emt 0:00:03]} Ke4 {[%emt 0:00:38]} 50. Bc4 {[%emt 0:00:26]} Be5 {[%emt 0:00:23]} 51. Kf1 {[%emt 0:01:02]} Kf3 {[%emt 0:00:42]} 52. Be2+ {[%emt 0:00:17]} Kf4 {[%emt 0:00:05]} 53. Kg2 {[%emt 0:00:22]} Bd4 {[%emt 0:00:35]} 54. Bd3 {[%emt 0:00:58]} Bc3 {[%emt 0:00:30]} 55. Bc4 {[%emt 0:01:18]} Ke5 {[%emt 0:00:03]} 56. Kf3 {[%emt 0:00:24]} Bd2 {[%emt 0:00:18]} 57. Ke2 {[%emt 0:01:03]} Bf4 {[%emt 0:00:01]} 58. Kf3 {[%emt 0:00:02]} Kd4 {[%emt 0:00:44]} 59. Ke2 {[%emt 0:00:36]} Ke4 {[%emt 0:00:09]} 60. Kf1 {[%emt 0:00:30]} Kd4 {[%emt 0:00:46]} 61. Ke2 {[%emt 0:00:13]} Kc3 {[%emt 0:00:16]} 62. Kd1 {[%emt 0:00:43]} Kb2 {[%emt 0:00:24]} 63. Ke2 {[%emt 0:00:23]} Kc2 {[%emt 0:00:06]} 64. Ke1 {[%emt 0:01:17]} Bd2+ {[%emt 0:00:52]} 65. Ke2 {[%emt 0:00:08]} Kc1 {[%emt 0:00:37]} 66. Bd3 {[%emt 0:00:45]} Bf4 {[%emt 0:00:02]} 67. Bc4 {[%emt 0:00:11]} Kc2 {[%emt 0:00:13]} 68. Ke1 {[%emt 0:00:08]} Kc3 {[%emt 0:00:03]} 69. Ke2 {[%emt 0:00:10]} Kd4 {[%emt 0:00:02]} 70. Kf3 {[%emt 0:00:25]} Be5 {[%emt 0:00:47]} 71. Ke2 {[%emt 0:00:22]} Ke4 {[%emt 0:00:11]} 72. Kf1 {[%emt 0:00:25]} 1/2-1/2

[Event "Kragero Resort B 2020"]
[Site "Kragero"]
[Date "2020.02.21"]
[Round "5.3"]
[White "Austad, Eirik"]
[Black "Olsen, William Alexander"]
[Result "1-0"]
[ECO "A21"]
[WhiteElo "1796"]
[BlackElo "1862"]
[Annotator "NA"]
[PlyCount "139"]
[EventDate "2020.02.19"]
[EventType "swiss"]
[EventCountry "NOR"]
[SourceTitle "playchess.com"]
[Source "ChessBase"]
[SourceQuality "1"]
[TimeControl "5400+30"]

1. c4 {[%emt 0:00:00]} e5 {[%emt 0:00:00]} 2. Nc3 {[%emt 0:00:00]} Nf6 {[%emt 0:00:00]} 3. Nf3 {[%emt 0:00:00]} Nc6 {[%emt 0:01:39]} 4. a3 {[%emt 0:00:13]} a5 {[%emt 0:05:09]} 5. Qc2 {[%emt 0:00:24]} Bc5 {[%emt 0:00:52]} 6. e3 {[%emt 0:00:38]} d6 {[%emt 0:00:12]} 7. Be2 {[%emt 0:00:56]} O-O {[%emt 0:01:41]} 8. O-O {[%emt 0:00:20]} Re8 {[%emt 0:00:57]} 9. d3 {[%emt 0:01:20]} Bf5 {[%emt 0:05:13]} 10. b3 {[%emt 0:02:22]} e4 {[%emt 0:07:12]} 11. dxe4 {[%emt 0:00:22]} Nxe4 {[%emt 0:01:49]} 12. Bd3 {[%emt 0:00:25]} Qe7 {[%emt 0:00:56]} 13. Nd5 {[%emt 0:06:23]} Qd8 {[%emt 0:00:01]} 14. Nc3 {[%emt 0:41:43]} Qe7 {[%emt 0:00:17]} 15. Nd5 {[%emt 0:00:49]} Qd8 {[%emt 0:00:17]} 16. Nf4 {[%emt 0:02:26]} g5 {[%emt 0:08:31]} 17. Nd5 {[%emt 0:01:46]} g4 $18 {[%emt 0:03:50]} 18. Ne1 {[%emt 0:04:13]} Ne5 {[%emt 0:19:45]} 19. Bxe4 {[%emt 0:09:39]} Bxe4 {[%emt 0:00:07]} 20. Qc3 {[%emt 0:01:57]} c6 {[%emt 0:12:29]} 21. Nf4 {[%emt 0:00:22]} d5 {[%emt 0:02:21]} 22. cxd5 {[%emt 0:01:12]} Bf8 {[%emt 0:00:18]} 23. Bb2 {[%emt 0:02:01]} Bg7 {[%emt 0:00:11]} 24. Qd2 {[%emt 0:01:11]} cxd5 {[%emt 0:01:11]} 25. Rd1 {[%emt 0:03:02]} Qb6 {[%emt 0:03:32]} 26. f3 {[%emt 0:02:46]} gxf3 {[%emt 0:07:54]} 27. gxf3 {[%emt 0:00:14]} Nxf3+ {[%emt 0:00:39]} 28. Nxf3 {[%emt 0:00:32]} Bxb2 {[%emt 0:00:05]} 29. Nxd5 {[%emt 0:03:00]} Qg6+ {[%emt 0:06:44]} 30. Kf2 {[%emt 0:00:33]} Bg7 {[%emt 0:00:45]} 31. Nf4 {[%emt 0:04:24]} Qg4 {[%emt 0:01:15]} 32. Qe2 {[%emt 0:00:52]} Bg6 {[%emt 0:00:29]} 33. Rg1 {[%emt 0:00:40]} Qf5 {[%emt 0:01:08]} 34. Rd5 {[%emt 0:01:29]} Qf6 {[%emt 0:01:03]} 35. h4 {[%emt 0:00:52]} Rac8 {[%emt 0:01:56]} 36. h5 {[%emt 0:00:46]} Rc2 {[%emt 0:00:13]} 37. Rd2 {[%emt 0:01:21]} Rxd2 {[%emt 0:00:11]} 38. Qxd2 {[%emt 0:00:46]} Be4 {[%emt 0:00:26]} 39. Qd4 {[%emt 0:00:41]} Qxd4 {[%emt 0:00:59]} 40. Nxd4 {[%emt 0:00:22]} Kf8 {[%emt 0:00:21]} 41. Rc1 {[%emt 0:00:09]} Bxd4 {[%emt 0:03:27]} 42. exd4 {[%emt 0:00:06]} Rd8 {[%emt 0:00:14]} 43. Ke3 {[%emt 0:00:04]} Bc6 {[%emt 0:00:11]} 44. Rc5 {[%emt 0:00:18]} Ke7 {[%emt 0:00:30]} 45. Rxa5 {[%emt 0:00:28]} Kd6 {[%emt 0:00:02]} 46. Rf5 {[%emt 0:02:19]} Re8+ {[%emt 0:00:12]} 47. Kd2 {[%emt 0:00:28]} Re7 {[%emt 0:00:38]} 48. Rf6+ {[%emt 0:00:30]} Kc7 {[%emt 0:02:07]} 49. d5 {[%emt 0:00:14]} Rd7 {[%emt 0:00:01]} 50. Kc3 {[%emt 0:00:41]} Bb5 {[%emt 0:00:44]} 51. a4 {[%emt 0:00:17]} Bf1 {[%emt 0:01:03]} 52. a5 {[%emt 0:01:19]} Kd8 {[%emt 0:00:27]} 53. d6 {[%emt 0:00:29]} Bb5 {[%emt 0:00:20]} 54. Kb4 {[%emt 0:01:07]} Bc6 {[%emt 0:00:05]} 55. Ne6+ {[%emt 0:01:06]} Ke8 {[%emt 0:00:14]} 56. Ng5 {[%emt 0:00:49]} Kf8 {[%emt 0:00:25]} 57. h6 {[%emt 0:00:25]} Kg8 {[%emt 0:00:10]} 58. Kc5 {[%emt 0:00:19]} Bg2 {[%emt 0:00:11]} 59. Rf2 {[%emt 0:00:33]} Bh1 {[%emt 0:00:21]} 60. Re2 {[%emt 0:00:25]} Rd8 {[%emt 0:00:20]} 61. d7 {[%emt 0:00:14]} Bc6 {[%emt 0:00:00]} 62. Re7 {[%emt 0:02:15]} Bxd7 {[%emt 0:00:46]} 63. Rxf7 {[%emt 0:00:20]} Rc8+ {[%emt 0:00:20]} 64. Kb6 {[%emt 0:01:21]} Rc6+ {[%emt 0:00:46]} 65. Kxb7 {[%emt 0:00:47]} Rg6 {[%emt 0:00:36]} 66. Rxd7 {[%emt 0:00:36]} Rxg5 {[%emt 0:00:08]} 67. Rg7+ {[%emt 0:00:27]} Rxg7+ {[%emt 0:00:14]} 68. hxg7 {[%emt 0:00:05]} h5 {[%emt 0:00:06]} 69. a6 {[%emt 0:00:05]} h4 {[%emt 0:00:06]} 70. a7 {[%emt 0:00:03]} 1-0

[Event "Kragero Resort B 2020"]
[Site "Kragero"]
[Date "2020.02.21"]
[Round "5.4"]
[White "Aasen, Joakim"]
[Black "Halvorsen, Benjamin"]
[Result "0-1"]
[ECO "A83"]
[WhiteElo "1745"]
[BlackElo "1861"]
[Annotator "NA"]
[PlyCount "98"]
[EventDate "2020.02.19"]
[EventType "swiss"]
[EventCountry "NOR"]
[SourceTitle "playchess.com"]
[Source "ChessBase"]
[SourceQuality "1"]
[TimeControl "5400+30"]

1. d4 {[%emt 0:00:00]} f5 {[%emt 0:02:42]} 2. e4 {[%emt 0:00:00]} fxe4 {[%emt 0:00:06]} 3. Nc3 {[%emt 0:00:00]} Nf6 {[%emt 0:00:05]} 4. Bg5 {[%emt 0:00:01]} e6 {[%emt 0:04:20]} 5. Nxe4 {[%emt 0:12:39]} Be7 {[%emt 0:01:42]} 6. Nxf6+ {[%emt 0:00:15]} Bxf6 {[%emt 0:00:11]} 7. Bxf6 {[%emt 0:00:33]} Qxf6 {[%emt 0:00:26]} 8. Nf3 {[%emt 0:00:31]} b6 {[%emt 0:05:16]} 9. c4 {[%emt 0:03:44] A83: Dutch Defence: Staunton Gambit with 3 Nc3 Nf6 4 Bg5.} Bb7 {[%emt 0:01:49]} 10. Be2 {[%emt 0:01:06]} O-O {[%emt 0:06:40]} 11. O-O {[%emt 0:00:50]} Nc6 {[%emt 0:02:33]} 12. Qd2 {[%emt 0:03:38] [#]} Qg6 $146 {[%emt 0:12:34]} ({Predecessor:} 12... Ne7 13. Qg5 Nf5 14. Qxf6 Rxf6 15. Rad1 Re8 16. Rd2 d6 17. a3 Rg6 18. Rfd1 Rf8 {1-0 (74) Kocak,B (1912)-Skapikova,L (1862) Slovakia 2014}) 13. Bd3 {[%emt 0:10:44]} Qh5 {[%emt 0:01:36]} 14. Be4 {[%emt 0:11:05]} d5 {[%emt 0:11:50]} 15. cxd5 {[%emt 0:03:12]} exd5 {[%emt 0:00:01]} 16. Bd3 {[%emt 0:01:12]} Rf6 {[%emt 0:08:56]} 17. Qg5 {[%emt 0:03:36]} (17. Rac1 $16) 17... Qxg5 {[%emt 0:00:57]} 18. Nxg5 {[%emt 0:00:06]} h6 {[%emt 0:00:19]} 19. Nf3 {[%emt 0:00:14]} Nb4 {[%emt 0:03:07]} 20. Ne5 {[%emt 0:05:03]} Nxd3 {[%emt 0:01:05]} 21. Nxd3 {[%emt 0:00:07]} Ba6 {[%emt 0:04:30]} 22. Rfd1 {[%emt 0:00:08]} Re8 {[%emt 0:04:16]} 23. Nb4 {[%emt 0:04:28]} Bb7 {[%emt 0:00:27]} 24. Nd3 {[%emt 0:05:42]} Re2 {[%emt 0:02:18]} 25. Kf1 {[%emt 0:01:31]} Rc2 $15 {[%emt 0:00:51]} 26. Rac1 {[%emt 0:00:22]} Rfc6 {[%emt 0:03:41]} 27. Rxc2 {[%emt 0:01:38]} Rxc2 {[%emt 0:00:01]} 28. Kg1 {[%emt 0:08:41]} a5 {[%emt 0:00:41]} 29. Rc1 {[%emt 0:01:05]} Rd2 {[%emt 0:00:21]} 30. Ne5 {[%emt 0:01:48]} Rxd4 {[%emt 0:00:55]} 31. f3 {[%emt 0:01:47]} c5 {[%emt 0:00:15]} 32. Rc2 {[%emt 0:01:19]} Rd1+ {[%emt 0:03:23]} 33. Kf2 {[%emt 0:00:11]} Ba6 {[%emt 0:01:20]} 34. b3 {[%emt 0:02:52]} d4 {[%emt 0:00:26]} 35. Nc4 {[%emt 0:00:27]} a4 {[%emt 0:05:14]} 36. Ke2 {[%emt 0:03:22]} axb3 {[%emt 0:00:34]} 37. axb3 {[%emt 0:00:24]} Rb1 {[%emt 0:00:26]} 38. Kd2 {[%emt 0:04:03]} Rxb3 {[%emt 0:00:39]} 39. Ne5 {[%emt 0:00:01]} Kf8 {[%emt 0:01:15]} 40. f4 {[%emt 0:01:06]} Kg8 {[%emt 0:06:54]} 41. g3 {[%emt 0:00:54]} Re3 {[%emt 0:00:10]} 42. Kd1 {[%emt 0:00:48]} Bb5 {[%emt 0:00:51]} 43. Rb2 {[%emt 0:00:38]} Ba4+ {[%emt 0:00:00]} 44. Kd2 {[%emt 0:00:20]} b5 {[%emt 0:00:18]} 45. Ra2 {[%emt 0:01:00]} Bb3 {[%emt 0:01:17]} 46. Ra8+ {[%emt 0:00:28]} Kh7 {[%emt 0:00:02]} 47. Rb8 {[%emt 0:00:19]} c4 {[%emt 0:00:09]} 48. Rc8 {[%emt 0:01:14]} c3+ {[%emt 0:00:15]} 49. Rxc3 {[%emt 0:00:25]} Rxc3 {[%emt 0:00:02]} 0-1

[Event "Kragero Resort B 2020"]
[Site "Kragero"]
[Date "2020.02.21"]
[Round "5.5"]
[White "Hausken, Andreas Skrede"]
[Black "Nordquelle, Amelia"]
[Result "0-1"]
[ECO "B52"]
[WhiteElo "1856"]
[BlackElo "1768"]
[Annotator "NA"]
[PlyCount "70"]
[EventDate "2020.02.19"]
[EventType "swiss"]
[EventCountry "NOR"]
[SourceTitle "playchess.com"]
[Source "ChessBase"]
[SourceQuality "1"]
[TimeControl "5400+30"]

1. e4 {[%emt 0:00:00]} c5 {[%emt 0:00:08]} 2. Nf3 {[%emt 0:00:00]} d6 {[%emt 0:00:14]} 3. Bb5+ {[%emt 0:00:00]} Bd7 {[%emt 0:00:09]} 4. Bxd7+ {[%emt 0:00:00]} Qxd7 {[%emt 0:00:41]} 5. O-O {[%emt 0:00:00]} Nc6 {[%emt 0:00:51]} 6. c3 {[%emt 0:00:00]} g6 {[%emt 0:02:31]} 7. Qe2 {[%emt 0:00:04]} Bg7 {[%emt 0:01:30]} 8. Rd1 {[%emt 0:00:07]} e6 {[%emt 0:09:45]} 9. d4 {[%emt 0:00:13]} cxd4 {[%emt 0:01:05]} 10. cxd4 {[%emt 0:00:04]} Nge7 {[%emt 0:01:17]} 11. Nc3 {[%emt 0:00:37]} d5 {[%emt 0:00:56]} 12. e5 {[%emt 0:00:36]} O-O {[%emt 0:07:33]} 13. h4 {[%emt 0:01:00]} h5 {[%emt 0:07:59]} 14. Bg5 {[%emt 0:02:23]} Nf5 {[%emt 0:05:22]} 15. Rac1 {[%emt 0:00:56]} Rab8 {[%emt 0:07:17]} 16. b3 {[%emt 0:05:41]} b5 {[%emt 0:03:34]} 17. Qb2 $11 {[%emt 0:12:06]} Rfc8 {[%emt 0:05:06]} 18. Ne2 {[%emt 0:02:22]} b4 {[%emt 0:01:36]} 19. Rc2 {[%emt 0:01:07]} a5 {[%emt 0:02:16]} 20. Rdc1 {[%emt 0:00:25]} Na7 {[%emt 0:00:21]} 21. a4 {[%emt 0:02:05]} bxa3 {[%emt 0:06:43]} 22. Qxa3 {[%emt 0:00:32]} Qb5 {[%emt 0:04:49]} 23. Rxc8+ {[%emt 0:06:48]} Nxc8 {[%emt 0:01:12]} 24. Ng3 {[%emt 0:01:00]} Nxg3 {[%emt 0:02:26]} 25. fxg3 {[%emt 0:00:04]} Bf8 {[%emt 0:00:35]} 26. Qa2 {[%emt 0:00:50]} Ne7 {[%emt 0:00:26]} 27. Rc7 {[%emt 0:01:37]} Nf5 {[%emt 0:01:23]} 28. Kh2 {[%emt 0:02:00]} Qb6 {[%emt 0:03:08]} 29. Qc2 {[%emt 0:01:35]} Qxb3 {[%emt 0:01:54]} 30. Qc6 {[%emt 0:00:02]} Qb5 {[%emt 0:00:17]} 31. Qxb5 {[%emt 0:01:07]} Rxb5 {[%emt 0:00:06]} 32. Bf6 {[%emt 0:00:02]} Rb8 {[%emt 0:01:59]} 33. Ng5 {[%emt 0:03:54]} Nh6 {[%emt 0:00:19]} 34. Ra7 {[%emt 0:00:33]} Ng4+ {[%emt 0:01:24]} 35. Kh3 {[%emt 0:00:07]} Rb1 {[%emt 0:00:15]} 0-1

[Event "Kragero Resort B 2020"]
[Site "Kragero"]
[Date "2020.02.21"]
[Round "5.6"]
[White "Lystad, Maximilian L"]
[Black "Skaslien, Ingrid"]
[Result "0-1"]
[ECO "A38"]
[WhiteElo "1710"]
[BlackElo "1847"]
[Annotator "NA"]
[PlyCount "116"]
[EventDate "2020.02.19"]
[EventType "swiss"]
[EventCountry "NOR"]
[SourceTitle "playchess.com"]
[Source "ChessBase"]
[SourceQuality "1"]
[TimeControl "5400+30"]

1. c4 {[%emt 0:00:00]} c5 {[%emt 0:00:10]} 2. g3 {[%emt 0:00:00]} Nc6 {[%emt 0:00:28]} 3. Bg2 {[%emt 0:00:00]} g6 {[%emt 0:00:17]} 4. Nc3 {[%emt 0:00:00]} Bg7 {[%emt 0:00:10]} 5. d3 {[%emt 0:00:06]} Nf6 {[%emt 0:02:14]} 6. Nf3 {[%emt 0:00:13]} O-O {[%emt 0:02:07]} 7. O-O {[%emt 0:00:37]} d6 {[%emt 0:02:27]} 8. Bd2 {[%emt 0:00:23]} Bd7 {[%emt 0:01:41]} 9. a3 {[%emt 0:00:37]} Qc8 {[%emt 0:06:46]} 10. Qc1 {[%emt 0:01:28]} Bh3 {[%emt 0:12:45]} 11. Bh6 {[%emt 0:00:42]} Bxg2 {[%emt 0:03:29]} 12. Kxg2 {[%emt 0:00:07]} Nd4 {[%emt 0:07:55]} 13. Bxg7 {[%emt 0:04:03]} Kxg7 {[%emt 0:00:27]} 14. Nxd4 {[%emt 0:00:06]} cxd4 {[%emt 0:00:08]} 15. Ne4 {[%emt 0:01:16]} Nxe4 {[%emt 0:00:58]} 16. dxe4 {[%emt 0:00:01]} Qc6 {[%emt 0:01:08]} 17. f3 {[%emt 0:00:54]} Rac8 {[%emt 0:07:21]} 18. b3 $11 {[%emt 0:00:46]} b5 {[%emt 0:01:40]} 19. Qb2 {[%emt 0:04:56]} bxc4 {[%emt 0:07:29]} 20. Qxd4+ {[%emt 0:00:23]} e5 {[%emt 0:00:09]} 21. Qxc4 {[%emt 0:00:10]} Qxc4 {[%emt 0:02:00]} 22. bxc4 {[%emt 0:00:01]} Rxc4 {[%emt 0:00:06]} 23. Rfd1 {[%emt 0:00:23]} Rc6 {[%emt 0:01:31]} 24. Rd5 {[%emt 0:00:46]} f5 {[%emt 0:02:38]} 25. exf5 {[%emt 0:01:22]} gxf5 {[%emt 0:01:51]} 26. Rb1 {[%emt 0:04:33]} Rf7 {[%emt 0:01:45]} 27. Rb4 {[%emt 0:03:11]} Kf6 {[%emt 0:06:32]} 28. Rh4 {[%emt 0:11:10]} Kg6 {[%emt 0:03:03]} 29. Ra4 {[%emt 0:01:40]} Rb7 {[%emt 0:02:31]} 30. Rda5 {[%emt 0:02:35]} Rb2 {[%emt 0:00:55]} 31. Ra6 {[%emt 0:06:08]} Rxa6 {[%emt 0:06:58]} 32. Rxa6 {[%emt 0:00:07]} Rxe2+ {[%emt 0:00:05]} 33. Kf1 {[%emt 0:02:52]} Rd2 {[%emt 0:00:33]} 34. Ke1 {[%emt 0:00:13]} Rxh2 {[%emt 0:04:01]} 35. Rxd6+ {[%emt 0:00:08]} Kg5 {[%emt 0:00:12]} 36. Re6 {[%emt 0:09:34]} Ra2 {[%emt 0:05:44]} 37. Rxe5 {[%emt 0:02:01]} Rxa3 {[%emt 0:00:06]} 38. g4 {[%emt 0:00:07]} Rxf3 {[%emt 0:00:59]} 39. gxf5 {[%emt 0:00:04]} Rxf5 {[%emt 0:03:37]} 40. Re7 {[%emt 0:00:12]} h5 {[%emt 0:00:42]} 41. Rxa7 {[%emt 0:00:04]} Kg4 {[%emt 0:01:35]} 42. Rg7+ {[%emt 0:01:40]} Kh3 {[%emt 0:00:34]} 43. Rd7 {[%emt 0:01:26]} Rf3 {[%emt 0:00:49]} 44. Ke2 {[%emt 0:00:14]} Rg3 {[%emt 0:00:15]} 45. Kf2 {[%emt 0:01:08]} h4 {[%emt 0:00:23]} 46. Rd4 {[%emt 0:00:47]} Rb3 {[%emt 0:00:35]} 47. Rc4 {[%emt 0:01:15]} Rb2+ {[%emt 0:00:25]} 48. Kf3 {[%emt 0:00:19]} Rb7 {[%emt 0:00:32]} 49. Kf2 {[%emt 0:01:24]} Rf7+ {[%emt 0:00:48]} 50. Kg1 {[%emt 0:00:24]} Rf3 {[%emt 0:00:50]} 51. Rc2 {[%emt 0:02:19]} Kg4 {[%emt 0:00:48]} 52. Rc4+ {[%emt 0:00:05]} Kg3 {[%emt 0:00:21]} 53. Rc8 {[%emt 0:00:52]} Kh3 {[%emt 0:00:50]} 54. Rc2 {[%emt 0:00:23]} Rg3+ {[%emt 0:00:28]} 55. Kh1 {[%emt 0:00:17]} Kg4 {[%emt 0:00:57]} 56. Rg2 {[%emt 0:01:25]} Kf3 {[%emt 0:00:25]} 57. Rxg3+ {[%emt 0:00:23]} hxg3 {[%emt 0:00:10]} 58. Kg1 {[%emt 0:00:04]} g2 {[%emt 0:00:13]} 0-1

[Event "Kragero Resort B 2020"]
[Site "Kragero"]
[Date "2020.02.21"]
[Round "5.7"]
[White "Westrum, Kim Roger Hansen"]
[Black "Espeland, Jonatan"]
[Result "1-0"]
[ECO "B40"]
[WhiteElo "1809"]
[BlackElo "1737"]
[Annotator "NA"]
[PlyCount "51"]
[EventDate "2020.02.19"]
[EventType "swiss"]
[EventCountry "NOR"]
[SourceTitle "playchess.com"]
[Source "ChessBase"]
[SourceQuality "1"]
[TimeControl "5400+30"]

1. e4 {[%emt 0:00:00]} c5 {[%emt 0:00:00]} 2. Nf3 {[%emt 0:00:00]} e6 {[%emt 0:00:00]} 3. c3 {[%emt 0:00:00]} Nf6 {[%emt 0:00:00]} 4. Bd3 {[%emt 0:00:01]} Nc6 {[%emt 0:07:50]} 5. Bc2 {[%emt 0:00:26]} d5 {[%emt 0:01:06]} 6. e5 {[%emt 0:00:23]} Nd7 {[%emt 0:00:08]} 7. d4 {[%emt 0:00:11]} Be7 {[%emt 0:01:09]} 8. O-O {[%emt 0:02:36]} b6 {[%emt 0:10:39]} 9. Be3 {[%emt 0:11:27]} Ba6 {[%emt 0:04:08]} 10. Re1 {[%emt 0:02:53]} O-O {[%emt 0:01:24]} 11. a3 {[%emt 0:01:12]} c4 {[%emt 0:03:30]} 12. Qc1 {[%emt 0:06:23]} Na5 {[%emt 0:07:02]} 13. Nbd2 {[%emt 0:05:19]} f5 {[%emt 0:09:36]} 14. exf6 {[%emt 0:03:02]} Bxf6 {[%emt 0:06:08]} 15. Bf4 {[%emt 0:09:22]} Re8 {[%emt 0:03:24]} 16. Rb1 {[%emt 0:01:06]} Nc6 {[%emt 0:08:34]} 17. Ne5 {[%emt 0:03:01]} Ncxe5 {[%emt 0:02:01]} 18. dxe5 {[%emt 0:00:58]} Be7 {[%emt 0:00:21]} 19. Nf3 {[%emt 0:00:19]} Nc5 {[%emt 0:05:18]} 20. Ng5 {[%emt 0:04:32]} g6 {[%emt 0:02:16]} 21. Qe3 {[%emt 0:02:26]} Rf8 {[%emt 0:02:47]} 22. Nxh7 {[%emt 0:05:46]} Rxf4 {[%emt 0:08:59]} 23. Qxf4 {[%emt 0:00:25]} Kxh7 {[%emt 0:00:05]} 24. Qf7+ {[%emt 0:00:18]} Kh8 {[%emt 0:00:10]} 25. Qxg6 {[%emt 0:05:03]} Ne4 {[%emt 0:06:13]} 26. Rxe4 {[%emt 0:00:20]} 1-0

[Event "Kragero Resort B 2020"]
[Site "Kragero"]
[Date "2020.02.21"]
[Round "5.8"]
[White "Solaas, Timian Martinius Man"]
[Black "Strand, Amund Pihl"]
[Result "1-0"]
[ECO "B41"]
[WhiteElo "1741"]
[BlackElo "1806"]
[Annotator "NA"]
[PlyCount "73"]
[EventDate "2020.02.19"]
[EventType "swiss"]
[EventCountry "NOR"]
[SourceTitle "playchess.com"]
[Source "ChessBase"]
[SourceQuality "1"]
[TimeControl "5400+30"]

1. e4 {[%emt 0:00:15]} c5 {[%emt 0:04:21]} 2. Nf3 {[%emt 0:01:51]} e6 {[%emt 0:00:34]} 3. c4 {[%emt 0:00:11]} Nc6 {[%emt 0:02:05]} 4. d4 {[%emt 0:00:12]} cxd4 {[%emt 0:00:15]} 5. Nxd4 {[%emt 0:00:08]} a6 {[%emt 0:01:37]} 6. Be3 {[%emt 0:00:33]} Nf6 {[%emt 0:02:40]} 7. Nc3 {[%emt 0:00:34]} Qc7 {[%emt 0:02:00]} 8. Be2 {[%emt 0:00:51]} Be7 {[%emt 0:03:29]} 9. O-O {[%emt 0:01:09]} h5 {[%emt 0:03:52]} 10. f4 {[%emt 0:04:20]} d6 {[%emt 0:04:12]} 11. Rc1 {[%emt 0:02:23]} Bd7 {[%emt 0:04:02]} 12. Bf3 {[%emt 0:03:39]} g6 {[%emt 0:15:56]} 13. Qd2 {[%emt 0:09:30]} Rc8 {[%emt 0:07:54]} 14. h3 {[%emt 0:04:54]} h4 {[%emt 0:07:51]} 15. f5 {[%emt 0:07:18]} Ne5 {[%emt 0:04:30]} 16. fxe6 {[%emt 0:11:26]} fxe6 {[%emt 0:02:24]} 17. Be2 {[%emt 0:10:47]} Nh5 {[%emt 0:03:01]} 18. Bxh5 {[%emt 0:03:25]} Rxh5 {[%emt 0:01:59]} 19. b3 {[%emt 0:00:39]} Qd8 {[%emt 0:05:06]} 20. Qf2 {[%emt 0:03:42]} Rh7 {[%emt 0:01:05]} 21. Qe2 {[%emt 0:01:41]} Bg5 {[%emt 0:06:02]} 22. Nf3 {[%emt 0:01:56]} Bf6 {[%emt 0:04:32]} 23. Nxe5 {[%emt 0:03:56]} Bxe5 {[%emt 0:00:02]} 24. Qg4 {[%emt 0:01:03]} Rg7 {[%emt 0:02:06]} 25. Rf3 {[%emt 0:10:02]} Bf6 {[%emt 0:03:34]} 26. e5 {[%emt 0:04:18]} dxe5 {[%emt 0:03:06]} 27. Ne4 {[%emt 0:01:18]} Be7 {[%emt 0:00:49]} 28. Rd1 {[%emt 0:05:50]} Qc7 {[%emt 0:03:40]} 29. Nf6+ {[%emt 0:00:46]} Bxf6 {[%emt 0:00:33]} 30. Rxf6 {[%emt 0:00:02]} Qa5 {[%emt 0:01:11]} 31. Rxe6+ {[%emt 0:01:02]} Kf8 {[%emt 0:00:31]} 32. Rf6+ {[%emt 0:01:24]} Kg8 {[%emt 0:00:27]} 33. Rxd7 {[%emt 0:00:41]} Qe1+ {[%emt 0:00:13]} 34. Rf1 {[%emt 0:01:06]} Qxe3+ {[%emt 0:00:33]} 35. Kh1 {[%emt 0:00:13]} Rxd7 {[%emt 0:00:41]} 36. Qxd7 {[%emt 0:00:07]} Qc5 {[%emt 0:00:36]} 37. Rf7 {[%emt 0:00:50]} 1-0